[Event "CZE-ch Youth B14 2022"]
[Site "Luhacovice"]
[Date "2022.03.15"]
[Round "5.6"]
[White "Jasso, Matej"]
[Black "Svoboda, Daniel"]
[Result "1-0"]
[ECO "B78"]
[WhiteElo "1726"]
[BlackElo "1619"]
[Annotator "NA"]
[PlyCount "57"]
[EventDate "2022.03.12"]
[EventType "swiss"]
[EventCountry "CZE"]
[SourceTitle "playchess.com"]
[Source "ChessBase"]
[SourceQuality "1"]
[TimeControl "40/5400+30:1800+30"]

1. e4 {[%emt 0:00:08]} c5 {[%emt 0:00:05]} 2. Nf3 {[%emt 0:00:10]} d6 {[%emt 0:00:11]} 3. d4 {[%emt 0:00:05]} cxd4 {[%emt 0:00:07]} 4. Nxd4 {[%emt 0:00:07]} Nf6 {[%emt 0:00:13]} 5. Nc3 {[%emt 0:00:06]} g6 {[%emt 0:00:06]} 6. Be3 {[%emt 0:00:25]} Bg7 {[%emt 0:01:11]} 7. f3 {[%emt 0:00:08]} O-O {[%emt 0:00:21]} 8. Bc4 {[%emt 0:00:25]} Nc6 {[%emt 0:00:37]} 9. Qd2 {[%emt 0:00:26]} Bd7 {[%emt 0:00:48]} 10. O-O-O {[%emt 0:01:41]} Rc8 {[%emt 0:00:58]} 11. Bb3 {[%emt 0:00:07]} Nxd4 {[%emt 0:00:09]} 12. Bxd4 {[%emt 0:00:12]} b5 {[%emt 0:00:07]} 13. h4 {[%emt 0:05:38]} a5 {[%emt 0:03:56]} 14. a4 {[%emt 0:04:07]} b4 {[%emt 0:09:27]} 15. Nb5 {[%emt 0:05:41]} Bxb5 {[%emt 0:02:43]} 16. axb5 {[%emt 0:00:11]} e6 {[%emt 0:17:23]} 17. h5 {[%emt 0:09:40]} Re8 {[%emt 0:11:07]} 18. g4 {[%emt 0:04:55]} d5 {[%emt 0:11:50]} 19. h6 {[%emt 0:03:35]} Bf8 {[%emt 0:05:39]} 20. b6 {[%emt 0:15:53]} dxe4 {[%emt 0:08:17]} 21. Ba4 {[%emt 0:02:50]} b3 {[%emt 0:06:13]} 22. c3 {[%emt 0:02:41]} e5 {[%emt 0:05:36]} 23. Be3 {[%emt 0:01:46]} Qxd2+ {[%emt 0:01:56]} 24. Rxd2 {[%emt 0:00:06]} Red8 {[%emt 0:01:22]} 25. b7 {[%emt 0:02:45]} Rb8 {[%emt 0:00:57]} 26. Rxd8 {[%emt 0:01:05]} Rxd8 {[%emt 0:00:13]} 27. Ba7 {[%emt 0:00:46]} Bd6 {[%emt 0:01:40]} 28. Rd1 {[%emt 0:00:05]} Ne8 {[%emt 0:01:03]} 29. Bxe8 {[%emt 0:00:24]} 1-0

[Event "CZE-ch Youth B14 2022"]
[Site "Luhacovice"]
[Date "2022.03.15"]
[Round "5.7"]
[White "Siles, Jan"]
[Black "Vysinsky, Otakar"]
[Result "1-0"]
[ECO "C49"]
[WhiteElo "1548"]
[BlackElo "1534"]
[Annotator "NA"]
[PlyCount "97"]
[EventDate "2022.03.12"]
[EventType "swiss"]
[EventCountry "CZE"]
[SourceTitle "playchess.com"]
[Source "ChessBase"]
[SourceQuality "1"]
[TimeControl "40/5400+30:1800+30"]

1. e4 {[%emt 0:00:10]} e5 {[%emt 0:00:17]} 2. Nf3 {[%emt 0:00:12]} Nf6 {[%emt 0:00:32]} 3. Nc3 {[%emt 0:07:23]} Nc6 {[%emt 0:02:44]} 4. Bb5 {[%emt 0:00:26]} Bb4 {[%emt 0:01:05]} 5. O-O O-O 6. a3 {[%emt 0:04:04]} Ba5 {[%emt 0:03:23]} 7. b4 {[%emt 0:01:13]} Bb6 {[%emt 0:00:19]} 8. Bb2 {[%emt 0:00:42]} d6 {[%emt 0:02:54]} 9. h3 {[%emt 0:04:29]} Nd4 {[%emt 0:03:34]} 10. Nxd4 {[%emt 0:10:47]} Bxd4 {[%emt 0:00:47]} 11. Qe2 {[%emt 0:01:25]} Be6 {[%emt 0:10:08]} 12. Nd1 {[%emt 0:05:15]} Bxb2 {[%emt 0:04:20]} 13. Nxb2 {[%emt 0:00:07]} c6 {[%emt 0:01:05]} 14. Bc4 {[%emt 0:02:34]} d5 {[%emt 0:02:46]} 15. exd5 {[%emt 0:00:15]} cxd5 {[%emt 0:00:10]} 16. Bb3 {[%emt 0:00:37]} Re8 {[%emt 0:07:54]} 17. Rfe1 {[%emt 0:06:08]} Qc7 18. Qxe5 {[%emt 0:04:48]} Qd7 {[%emt 0:13:12]} 19. Qg3 {[%emt 0:04:09]} Ne4 {[%emt 0:02:09]} 20. Qd3 {[%emt 0:00:09]} b5 {[%emt 0:02:27]} 21. Nd1 {[%emt 0:03:55]} Bf5 {[%emt 0:09:27]} 22. Ne3 {[%emt 0:01:46]} Bxh3 {[%emt 0:08:51]} 23. Qxd5 {[%emt 0:13:07]} Be6 {[%emt 0:02:44]} 24. Qxd7 {[%emt 0:00:29]} Bxd7 {[%emt 0:00:01]} 25. d3 {[%emt 0:00:52]} Nc3 {[%emt 0:01:56]} 26. Nd5 {[%emt 0:00:43]} Ne2+ {[%emt 0:02:14]} 27. Kf1 {[%emt 0:00:18]} Nd4 {[%emt 0:00:13]} 28. Rxe8+ {[%emt 0:03:26]} Rxe8 {[%emt 0:00:27]} 29. Re1 {[%emt 0:00:13]} Kf8 {[%emt 0:02:52]} 30. Rxe8+ {[%emt 0:02:08]} Kxe8 {[%emt 0:00:16]} 31. Ke1 {[%emt 0:00:17]} Bc6 {[%emt 0:01:31]} 32. Ne3 {[%emt 0:00:49]} f5 {[%emt 0:01:47]} 33. f4 {[%emt 0:02:22]} h6 {[%emt 0:01:29]} 34. Ba2 {[%emt 0:03:19]} Ke7 {[%emt 0:05:34]} 35. c3 {[%emt 0:00:41]} Ne6 {[%emt 0:01:12]} 36. Nxf5+ {[%emt 0:00:09]} Kf6 {[%emt 0:00:09]} 37. Bxe6 {[%emt 0:00:08]} Kxe6 {[%emt 0:00:24]} 38. Nd4+ {[%emt 0:00:07]} Kd6 {[%emt 0:00:25]} 39. Nxc6 {[%emt 0:00:06]} Kxc6 {[%emt 0:00:06]} 40. Ke2 {[%emt 0:00:08]} Kd5 {[%emt 0:00:06]} 41. Kf3 {[%emt 0:30:34]} h5 {[%emt 0:30:30]} 42. g3 {[%emt 0:00:50]} g6 {[%emt 0:00:30]} 43. Ke3 {[%emt 0:00:06]} a6 {[%emt 0:00:13]} 44. Kf3 {[%emt 0:00:04]} Ke6 {[%emt 0:00:19]} 45. Ke4 {[%emt 0:00:10]} Kf6 {[%emt 0:00:10]} 46. c4 {[%emt 0:00:08]} bxc4 {[%emt 0:00:36]} 47. dxc4 {[%emt 0:00:07]} g5 {[%emt 0:00:07]} 48. fxg5+ {[%emt 0:00:17]} Kxg5 {[%emt 0:00:08]} 49. Kf3 {[%emt 0:00:04]} 1-0

[Event "CZE-ch Youth B14 2022"]
[Site "Luhacovice"]
[Date "2022.03.15"]
[Round "5.8"]
[White "Juracak, David"]
[Black "Juhanak, Daniel"]
[Result "1-0"]
[ECO "E14"]
[WhiteElo "1717"]
[BlackElo "1688"]
[Annotator "NA"]
[PlyCount "121"]
[EventDate "2022.03.12"]
[EventType "swiss"]
[EventCountry "CZE"]
[SourceTitle "playchess.com"]
[Source "ChessBase"]
[SourceQuality "1"]
[TimeControl "40/5400+30:1800+30"]

1. d4 {[%emt 0:00:02]} Nf6 {[%emt 0:00:15]} 2. c4 {[%emt 0:00:05]} e6 {[%emt 0:00:17]} 3. Nf3 {[%emt 0:00:17]} b6 {[%emt 0:01:06]} 4. e3 {[%emt 0:00:07]} Bb7 {[%emt 0:00:29]} 5. Bd3 {[%emt 0:00:14]} d5 {[%emt 0:00:48]} 6. b3 {[%emt 0:00:22]} dxc4 {[%emt 0:01:34]} 7. bxc4 {[%emt 0:00:16]} c5 {[%emt 0:01:34]} 8. Bb2 {[%emt 0:00:56]} Nc6 {[%emt 0:01:13]} 9. O-O {[%emt 0:02:01]} Be7 {[%emt 0:01:45]} 10. Nbd2 {[%emt 0:00:35]} O-O {[%emt 0:01:02]} 11. Rc1 {[%emt 0:00:42]} Qc7 {[%emt 0:04:26]} 12. Qe2 {[%emt 0:01:20]} Rfd8 {[%emt 0:03:04]} 13. Rfd1 {[%emt 0:00:26]} Rac8 {[%emt 0:01:42]} 14. h3 {[%emt 0:03:21]} h6 {[%emt 0:02:40]} 15. Nb3 {[%emt 0:08:37]} a5 {[%emt 0:07:10]} 16. Nbd2 {[%emt 0:11:29]} Qb8 17. a3 {[%emt 0:26:51]} Qa8 {[%emt 0:24:01]} 18. Rb1 {[%emt 0:10:00]} Rd7 {[%emt 0:10:49]} 19. dxc5 {[%emt 0:03:00]} bxc5 {[%emt 0:12:15]} 20. Nb3 {[%emt 0:01:48]} a4 {[%emt 0:03:55]} 21. Bxf6 {[%emt 0:01:05]} gxf6 {[%emt 0:01:34]} 22. Nxc5 {[%emt 0:00:23]} Bxc5 {[%emt 0:03:04]} 23. Bh7+ {[%emt 0:00:04]} Kxh7 {[%emt 0:00:21]} 24. Rxd7 {[%emt 0:00:03]} Nd8 {[%emt 0:00:58]} 25. Rb5 {[%emt 0:18:23]} Kg7 {[%emt 0:12:08]} 26. Rxd8 {[%emt 0:01:21]} Rxd8 {[%emt 0:00:34]} 27. Rxc5 {[%emt 0:00:03]} Qa6 {[%emt 0:02:17]} 28. Nd4 {[%emt 0:00:56]} Qb6 {[%emt 0:01:15]} 29. Rb5 {[%emt 0:00:30]} Qc7 {[%emt 0:01:00]} 30. Qg4+ {[%emt 0:00:32]} Kh7 {[%emt 0:00:43]} 31. Qh4 {[%emt 0:00:42]} f5 {[%emt 0:01:01]} 32. Rxb7 {[%emt 0:01:26]} Rxd4 {[%emt 0:00:25]} 33. Rxc7 {[%emt 0:00:05]} Rxh4 {[%emt 0:00:03]} 34. Rxf7+ {[%emt 0:00:07]} Kg6 {[%emt 0:00:30]} 35. Rc7 {[%emt 0:00:04]} Re4 {[%emt 0:00:42]} 36. Kf1 {[%emt 0:00:12]} f4 {[%emt 0:00:45]} 37. Ke2 {[%emt 0:00:28]} fxe3 {[%emt 0:00:30]} 38. fxe3 {[%emt 0:00:03]} Re5 {[%emt 0:00:37]} 39. Ra7 {[%emt 0:00:54]} Rg5 {[%emt 0:00:20]} 40. g4 {[%emt 0:00:24]} h5 {[%emt 0:00:24]} 41. gxh5+ {[%emt 0:30:32]} Rxh5 {[%emt 0:01:28]} 42. Rxa4 {[%emt 0:00:00]} Rxh3 {[%emt 0:01:40]} 43. c5 {[%emt 0:00:00]} Kf6 {[%emt 0:06:12]} 44. c6 {[%emt 0:00:00]} Ke7 {[%emt 0:03:38]} 45. Rd4 {[%emt 0:00:00]} Rh2+ {[%emt 0:03:24]} 46. Kd3 {[%emt 0:00:00]} Ra2 {[%emt 0:00:53]} 47. a4 {[%emt 0:00:00]} Ra3+ {[%emt 0:00:20]} 48. Kd2 {[%emt 0:00:00]} Ra2+ {[%emt 0:00:23]} 49. Kc1 {[%emt 0:00:00]} Ra3 {[%emt 0:02:12]} 50. Kb2 {[%emt 0:00:00]} Rxe3 {[%emt 0:02:02]} 51. c7 {[%emt 0:00:00]} e5 {[%emt 0:00:20]} 52. c8=Q {[%emt 0:00:00]} exd4 {[%emt 0:00:09]} 53. Qc5+ {[%emt 0:00:00]} Ke6 {[%emt 0:00:47]} 54. Qxd4 {[%emt 0:00:00]} Re5 {[%emt 0:00:24]} 55. Qb6+ {[%emt 0:00:00]} Ke7 {[%emt 0:00:17]} 56. a5 {[%emt 0:00:00]} Rd5 {[%emt 0:00:17]} 57. a6 {[%emt 0:00:00]} Kd7 {[%emt 0:00:59]} 58. Qb7+ {[%emt 0:00:00]} Kd6 {[%emt 0:00:09]} 59. Qxd5+ {[%emt 0:00:00]} Kxd5 {[%emt 0:00:05]} 60. a7 {[%emt 0:00:00]} Kd6 {[%emt 0:00:19]} 61. a8=Q {[%emt 0:00:00]} 1-0

[Event "CZE-ch Youth B14 2022"]
[Site "Luhacovice"]
[Date "2022.03.15"]
[Round "5.9"]
[White "Dusanek, Michal"]
[Black "Sigut, Ondrej"]
[Result "1-0"]
[ECO "C06"]
[WhiteElo "1682"]
[BlackElo "1536"]
[Annotator "NA RC"]
[PlyCount "105"]
[EventDate "2022.03.12"]
[EventType "swiss"]
[EventCountry "CZE"]
[SourceTitle "playchess.com"]
[Source "ChessBase"]
[SourceQuality "1"]
[TimeControl "40/5400+30:1800+30"]

1. e4 {[%emt 0:00:07]} e6 {[%emt 0:00:10]} 2. d4 {[%emt 0:00:17]} d5 {[%emt 0:00:11]} 3. Nd2 {[%emt 0:00:40]} Nf6 {[%emt 0:00:32]} 4. e5 {[%emt 0:00:23]} Nfd7 {[%emt 0:00:11]} 5. Bd3 {[%emt 0:00:57]} c5 {[%emt 0:00:36]} 6. c3 {[%emt 0:00:28]} Nc6 {[%emt 0:00:22]} 7. Ne2 {[%emt 0:00:49]} cxd4 {[%emt 0:00:40]} 8. cxd4 {[%emt 0:00:13]} f6 {[%emt 0:02:01]} 9. exf6 {[%emt 0:00:29]} Nxf6 {[%emt 0:00:10]} 10. O-O {[%emt 0:02:15]} Bd6 {[%emt 0:01:22]} 11. Nf3 {[%emt 0:01:23]} O-O {[%emt 0:01:03]} 12. Bg5 {[%emt 0:05:41]} Qc7 {[%emt 0:02:47]} 13. Bh4 {[%emt 0:03:43]} Bd7 {[%emt 0:03:22]} 14. Bg3 {[%emt 0:02:36]} Rae8 {[%emt 0:02:02]} 15. Rc1 {[%emt 0:01:28]} Bxg3 {[%emt 0:10:45]} 16. hxg3 {[%emt 0:10:20]} Qd6 {[%emt 0:02:16]} 17. Nf4 {[%emt 0:20:32]} e5 {[%emt 0:13:02]} 18. dxe5 {[%emt 0:13:42]} Nxe5 {[%emt 0:01:35]} 19. Nd4 {[%emt 0:03:17]} Nxd3 20. Qxd3 {[%emt 0:02:45]} a6 {[%emt 0:16:10]} 21. Rfd1 {[%emt 0:04:09]} Rd8 {[%emt 0:10:54]} 22. Qb3 {[%emt 0:02:51]} b5 {[%emt 0:08:31]} 23. Qd3 {[%emt 0:05:13]} Kh8 {[%emt 0:02:17]} 24. b4 {[%emt 0:00:55]} Rfe8 {[%emt 0:03:14]} 25. a3 {[%emt 0:00:23]} Rc8 {[%emt 0:01:53]} 26. Nb3 {[%emt 0:01:32]} Rxc1 {[%emt 0:00:58]} 27. Rxc1 {[%emt 0:00:18]} Rc8 {[%emt 0:01:47]} 28. Rxc8+ {[%emt 0:03:04]} Bxc8 {[%emt 0:00:01]} 29. Nc5 {[%emt 0:00:12]} g6 {[%emt 0:02:09]} 30. Qd4 {[%emt 0:01:19]} Kg8 {[%emt 0:00:39]} 31. Ncd3 {[%emt 0:02:53]} Bf5 {[%emt 0:02:32]} 32. Nc5 {[%emt 0:00:39]} Bc8 {[%emt 0:01:39]} 33. Qc3 {[%emt 0:01:14]} Bf5 {[%emt 0:01:56]} 34. Nb7 {[%emt 0:01:34]} Qb6 {[%emt 0:01:23]} 35. Na5 {[%emt 0:00:20]} Ne4 {[%emt 0:01:27]} 36. Qb2 {[%emt 0:02:24]} Nf6 {[%emt 0:02:39]} 37. Nb3 {[%emt 0:00:24]} Qd8 {[%emt 0:02:01]} 38. Qe5 {[%emt 0:00:39]} Bc8 {[%emt 0:02:48]} 39. Nd4 {[%emt 0:00:29]} Bg4 {[%emt 0:01:11]} 40. Nc6 {[%emt 0:00:40]} Qf8 {[%emt 0:00:33]} 41. Ne7+ {[%emt 0:30:18]} Kf7 {[%emt 0:00:11]} 42. Nexd5 {[%emt 0:00:00]} Nxd5 {[%emt 0:05:43]} 43. Qxd5+ {[%emt 0:00:00]} Kg7 {[%emt 0:06:20]} 44. Qb7+ {[%emt 0:00:00]} Kh6 {[%emt 0:03:12]} 45. Qxa6 {[%emt 0:00:00]} Bd7 {[%emt 0:01:48]} 46. Qb7 {[%emt 0:00:00]} Qe8 {[%emt 0:03:18]} 47. Kh2 {[%emt 0:00:00]} Bc6 {[%emt 0:01:34]} 48. Qb6 {[%emt 0:00:00]} Kg7 {[%emt 0:02:46]} 49. Qd4+ {[%emt 0:00:00]} Kh6 {[%emt 0:01:19]} 50. Qf6 {[%emt 0:00:00]} Qd7 {[%emt 0:03:06]} 51. Ne6 {[%emt 0:01:23]} Qd5 {[%emt 0:01:30]} 52. Qf8+ {[%emt 0:00:20]} Kh5 {[%emt 0:00:15]} 53. Nf4+ {[%emt 0:00:17]} 1-0

[Event "CZE-ch Youth B14 2022"]
[Site "Luhacovice"]
[Date "2022.03.15"]
[Round "5.10"]
[White "Kubin, Tomas Daniel"]
[Black "Davidek, Zdenek"]
[Result "1/2-1/2"]
[ECO "B18"]
[WhiteElo "1666"]
[BlackElo "1570"]
[Annotator "NA RC"]
[PlyCount "161"]
[EventDate "2022.03.12"]
[EventType "swiss"]
[EventCountry "CZE"]
[SourceTitle "playchess.com"]
[Source "ChessBase"]
[SourceQuality "1"]
[TimeControl "40/5400+30:1800+30"]

1. e4 {[%emt 0:00:03]} c6 {[%emt 0:00:43]} 2. d4 {[%emt 0:00:07]} d5 {[%emt 0:00:04]} 3. Nc3 {[%emt 0:00:17]} dxe4 {[%emt 0:00:44]} 4. Nxe4 {[%emt 0:00:08]} Bf5 {[%emt 0:01:07]} 5. Ng3 {[%emt 0:00:07]} Bg6 {[%emt 0:00:06]} 6. h4 {[%emt 0:00:39]} h6 {[%emt 0:00:10]} 7. h5 {[%emt 0:00:21]} Bh7 {[%emt 0:00:05]} 8. Nf3 {[%emt 0:00:26]} e6 {[%emt 0:00:57]} 9. Bd3 {[%emt 0:00:23]} Bxd3 {[%emt 0:00:09]} 10. Qxd3 {[%emt 0:00:08]} Nf6 {[%emt 0:00:22]} 11. Bd2 {[%emt 0:00:56]} Be7 {[%emt 0:03:00]} 12. O-O-O {[%emt 0:01:38]} O-O {[%emt 0:03:25]} 13. Kb1 {[%emt 0:04:04]} Nbd7 {[%emt 0:01:12]} 14. Ne4 {[%emt 0:01:12]} Nxe4 {[%emt 0:00:50]} 15. Qxe4 {[%emt 0:00:06]} Nf6 {[%emt 0:00:04]} 16. Qe2 {[%emt 0:00:32]} Qd5 {[%emt 0:00:11]} 17. Rde1 {[%emt 0:02:59]} b5 {[%emt 0:09:51]} 18. g4 {[%emt 0:14:34]} Nh7 {[%emt 0:09:41]} 19. Ne5 {[%emt 0:17:24]} Rfd8 {[%emt 0:07:04]} 20. g5 {[%emt 0:15:11]} hxg5 {[%emt 0:19:54]} 21. f4 {[%emt 0:07:02]} Bf6 {[%emt 0:21:33]} 22. Ba5 {[%emt 0:06:27]} Bxe5 {[%emt 0:10:05]} 23. dxe5 {[%emt 0:03:08]} Re8 {[%emt 0:02:15]} 24. fxg5 {[%emt 0:01:01]} Nxg5 {[%emt 0:02:56]} 25. Qg4 {[%emt 0:05:47]} f6 {[%emt 0:05:22]} 26. h6 {[%emt 0:00:26]} Qf3 {[%emt 0:00:47]} 27. Qh4 {[%emt 0:01:35]} g6 {[%emt 0:00:42]} 28. exf6 {[%emt 0:03:29]} Nf7 {[%emt 0:00:23]} 29. h7+ {[%emt 0:03:38]} Kh8 {[%emt 0:00:03]} 30. Rhg1 {[%emt 0:00:43]} Qf5 {[%emt 0:01:09]} 31. Ref1 {[%emt 0:00:27]} Qh5 {[%emt 0:00:13]} 32. Qxh5 {[%emt 0:00:47]} gxh5 {[%emt 0:00:00]} 33. Rg7 {[%emt 0:00:23]} Nd6 {[%emt 0:00:23]} 34. Rd7 {[%emt 0:05:33]} Nf5 {[%emt 0:01:13]} 35. Bc3 {[%emt 0:01:32]} Rf8 {[%emt 0:00:38]} 36. Rh1 {[%emt 0:02:50]} h4 {[%emt 0:00:12]} 37. f7+ {[%emt 0:01:25]} Kxh7 {[%emt 0:00:10]} 38. Bb4 {[%emt 0:00:26]} Kg6 {[%emt 0:00:37]} 39. Bxf8 {[%emt 0:00:52]} Rxf8 {[%emt 0:00:03]} 40. Rxa7 {[%emt 0:00:00]} Rxf7 {[%emt 0:00:00]} 41. Rxf7 {[%emt 0:02:06]} Kxf7 {[%emt 0:00:21]} 42. Kc1 {[%emt 0:00:55]} Ke7 {[%emt 0:08:31]} 43. Kd2 {[%emt 0:08:34]} Kd6 {[%emt 0:00:51]} 44. Ke1 {[%emt 0:02:25]} e5 {[%emt 0:11:46]} 45. Kf2 {[%emt 0:03:53]} e4 {[%emt 0:02:32]} 46. b3 {[%emt 0:02:36]} b4 {[%emt 0:00:57]} 47. a4 {[%emt 0:03:39]} bxa3 {[%emt 0:00:30]} 48. Ra1 {[%emt 0:00:07]} Nd4 {[%emt 0:03:52]} 49. Ra2 {[%emt 0:08:00]} Ke5 {[%emt 0:03:27]} 50. c3 {[%emt 0:01:34]} Nxb3 {[%emt 0:02:07]} 51. Rxa3 {[%emt 0:00:05]} Nc5 {[%emt 0:00:16]} 52. Ke3 {[%emt 0:01:46]} Kd5 {[%emt 0:00:52]} 53. Ra2 {[%emt 0:01:17]} Kc4 {[%emt 0:00:35]} 54. Rh2 {[%emt 0:00:08]} Kxc3 {[%emt 0:01:10]} 55. Rxh4 {[%emt 0:00:03]} Kc4 {[%emt 0:00:31]} 56. Rg4 {[%emt 0:00:36]} Kc3 {[%emt 0:00:59]} 57. Rg6 {[%emt 0:00:23]} Kc4 {[%emt 0:00:36]} 58. Rxc6 {[%emt 0:00:26]} Kd5 {[%emt 0:00:37]} 59. Rh6 {[%emt 0:00:24]} Nd7 {[%emt 0:00:29]} 60. Rh5+ {[%emt 0:00:39]} Ke6 {[%emt 0:00:30]} 61. Ra5 {[%emt 0:00:54]} Nf6 {[%emt 0:00:24]} 62. Kf4 {[%emt 0:00:18]} e3 {[%emt 0:00:40]} 63. Kxe3 {[%emt 0:00:39]} Nd5+ {[%emt 0:00:14]} 64. Ke4 {[%emt 0:00:35]} Nf6+ {[%emt 0:00:05]} 65. Kd4 {[%emt 0:00:23]} Ng4 {[%emt 0:00:46]} 66. Ra6+ {[%emt 0:00:33]} Kf5 {[%emt 0:00:09]} 67. Rd6 {[%emt 0:00:37]} Nf6 {[%emt 0:00:24]} 68. Rd8 {[%emt 0:00:32]} Ke6 {[%emt 0:00:15]} 69. Ra8 {[%emt 0:00:44]} Kf5 {[%emt 0:00:20]} 70. Ra5+ {[%emt 0:00:18]} Ke6 {[%emt 0:00:49]} 71. Re5+ {[%emt 0:00:08]} Kd6 {[%emt 0:00:26]} 72. Re1 {[%emt 0:00:30]} Nd7 {[%emt 0:00:49]} 73. Rh1 {[%emt 0:00:37]} Nf6 {[%emt 0:00:08]} 74. Rh3 {[%emt 0:00:51]} Ke6 {[%emt 0:00:21]} 75. Re3+ {[%emt 0:00:51]} Kd6 {[%emt 0:00:05]} 76. Ra3 {[%emt 0:00:15]} Ke6 {[%emt 0:00:12]} 77. Ra5 {[%emt 0:00:18]} Nd7 {[%emt 0:01:16]} 78. Ke4 {[%emt 0:01:12]} Nf6+ {[%emt 0:00:09]} 79. Kf4 {[%emt 0:00:06]} Nd5+ {[%emt 0:00:09]} 80. Kg5 {[%emt 0:00:47]} Ke5 {[%emt 0:00:36]} 81. Rb5 {[%emt 0:00:31]} 1/2-1/2

[Event "CZE-ch Youth B14 2022"]
[Site "Luhacovice"]
[Date "2022.03.15"]
[Round "5.11"]
[White "Hozda, Max"]
[Black "Mrazek, Adam"]
[Result "1-0"]
[ECO "E93"]
[WhiteElo "1901"]
[BlackElo "1582"]
[Annotator "ChessBase"]
[PlyCount "79"]
[EventDate "2022.03.12"]
[EventType "swiss"]
[EventCountry "CZE"]
[SourceTitle "playchess.com"]
[Source "ChessBase"]
[SourceQuality "1"]
[TimeControl "40/5400+30:1800+30"]

1. d4 {[%emt 0:00:07]} Nf6 {[%emt 0:00:09]} 2. c4 {[%emt 0:00:03]} g6 {[%emt 0:00:07]} 3. Nc3 {[%emt 0:00:03]} Bg7 {[%emt 0:00:03]} 4. e4 {[%emt 0:00:06]} d6 {[%emt 0:00:06]} 5. Nf3 {[%emt 0:00:04]} O-O {[%emt 0:00:08]} 6. Be2 {[%emt 0:00:03]} e5 {[%emt 0:01:19]} 7. d5 {[%emt 0:00:13]} Nbd7 {[%emt 0:00:08]} 8. O-O {[%emt 0:01:18]} a5 {[%emt 0:04:31]} 9. Qc2 {[%emt 0:03:37]} Nc5 {[%emt 0:02:04]} 10. Be3 {[%emt 0:03:27]} Nh5 {[%emt 0:14:55]} 11. Nd2 {[%emt 0:12:26]} Nf4 {[%emt 0:01:21]} 12. Kh1 {[%emt 0:14:10]} f5 {[%emt 0:04:25]} 13. f3 {[%emt 0:05:13]} g5 {[%emt 0:16:01]} 14. b3 {[%emt 0:06:54]} h5 {[%emt 0:04:49]} 15. a3 {[%emt 0:04:16]} Nxe2 {[%emt 0:07:23]} 16. Nxe2 {[%emt 0:00:22]} f4 {[%emt 0:00:10]} 17. Bg1 {[%emt 0:09:06]} g4 {[%emt 0:02:04]} 18. b4 {[%emt 0:11:39]} Nd7 {[%emt 0:18:45]} 19. fxg4 {[%emt 0:06:27]} hxg4 {[%emt 0:00:09]} 20. Rab1 {[%emt 0:02:28]} Nf6 {[%emt 0:08:06]} 21. g3 {[%emt 0:02:42]} Nh5 {[%emt 0:04:41]} 22. Bf2 {[%emt 0:00:59]} Rf7 {[%emt 0:01:41]} 23. c5 {[%emt 0:00:59]} Bf8 {[%emt 0:00:51]} 24. cxd6 {[%emt 0:01:10]} cxd6 {[%emt 0:00:09]} 25. Nc4 {[%emt 0:04:32]} Rc7 {[%emt 0:08:22]} 26. Qb3 {[%emt 0:00:45]} a4 {[%emt 0:00:31]} 27. Qa2 {[%emt 0:00:06]} b5 {[%emt 0:00:25]} 28. Na5 {[%emt 0:01:36]} Ra6 {[%emt 0:00:33]} 29. Nc6 {[%emt 0:00:22]} Qe8 {[%emt 0:00:31]} 30. Rbc1 {[%emt 0:01:25]} Bd7 {[%emt 0:00:29]} 31. Nc3 {[%emt 0:01:10]} fxg3 {[%emt 0:00:31]} 32. hxg3 {[%emt 0:01:41]} Rb7 {[%emt 0:00:30]} 33. Kg2 {[%emt 0:01:52]} Bh6 {[%emt 0:00:26]} 34. Rce1 {[%emt 0:00:27]} Kh7 {[%emt 0:00:29]} 35. Rh1 {[%emt 0:02:10]} Bxc6 {[%emt 0:00:27]} 36. dxc6 {[%emt 0:00:00]} Rxc6 {[%emt 0:00:00]} 37. Nd5 {[%emt 0:00:00]} Kg6 {[%emt 0:01:09]} 38. Rxh5 {[%emt 0:00:28]} Qf7 {[%emt 0:00:30]} 39. Rf5 {[%emt 0:00:13]} Qe8 {[%emt 0:00:31]} 40. Qe2 {[%emt 0:00:42]} 1-0

[Event "CZE-ch Youth B14 2022"]
[Site "Luhacovice"]
[Date "2022.03.15"]
[Round "5.12"]
[White "Tesar, Jakub"]
[Black "Veverka, Vladimir"]
[Result "1-0"]
[ECO "C06"]
[WhiteElo "1660"]
[BlackElo "1723"]
[Annotator "NA"]
[PlyCount "61"]
[EventDate "2022.03.12"]
[EventType "swiss"]
[EventCountry "CZE"]
[SourceTitle "playchess.com"]
[Source "ChessBase"]
[SourceQuality "1"]
[TimeControl "40/5400+30:1800+30"]

1. e4 e6 2. d4 d5 3. Nd2 Nf6 4. e5 Nfd7 5. Bd3 c5 6. c3 Nc6 7. Ne2 cxd4 8. cxd4 f6 9. exf6 Nxf6 10. Nf3 Bd6 11. O-O Qc7 12. Bg5 O-O 13. Bh4 Bd7 14. Bg3 Be8 15. Ng5 Bf7 16. Qc2 h6 17. Nxf7 Rxf7 18. Bg6 Rff8 19. Rfe1 Bxg3 20. fxg3 Qd6 21. Rad1 Ne8 22. Nf4 Rf6 23. Qe2 Nc7 24. Bb1 Re8 25. Nh5 Rff8 26. Qd3 Rf5 27. g4 Nb4 28. Qe2 Rff8 29. a3 Nc6 30. Qc2 Ra8 31. Rf1 1-0

[Event "CZE-ch Youth B14 2022"]
[Site "Luhacovice"]
[Date "2022.03.16"]
[Round "6.1"]
[White "Prazak, Daniel"]
[Black "Zelba, Lukas"]
[Result "1/2-1/2"]
[ECO "C01"]
[WhiteElo "2016"]
[BlackElo "1945"]
[Annotator "ChessBase"]
[PlyCount "61"]
[EventDate "2022.03.12"]
[EventType "swiss"]
[EventCountry "CZE"]
[SourceTitle "playchess.com"]
[Source "ChessBase"]
[SourceQuality "1"]
[TimeControl "40/5400+30:1800+30"]

1. e4 {[%emt 0:00:02]} e6 {[%emt 0:00:03]} 2. d4 {[%emt 0:00:31]} d5 {[%emt 0:00:06]} 3. exd5 {[%emt 0:00:10]} exd5 {[%emt 0:00:04]} 4. Nf3 {[%emt 0:00:02]} Bd6 {[%emt 0:00:30]} 5. c4 {[%emt 0:00:04]} Nf6 {[%emt 0:00:16]} 6. Nc3 {[%emt 0:05:50]} c6 {[%emt 0:02:47]} 7. Bd3 {[%emt 0:01:28]} O-O {[%emt 0:08:03]} 8. O-O {[%emt 0:01:06]} Bg4 {[%emt 0:04:15]} 9. h3 {[%emt 0:00:43]} Bh5 {[%emt 0:01:06]} 10. g4 {[%emt 0:01:26]} Bg6 {[%emt 0:09:06]} 11. Ne5 {[%emt 0:03:58]} dxc4 {[%emt 0:14:18]} 12. Bxc4 {[%emt 0:00:55]} Ne4 {[%emt 0:07:26]} 13. Qf3 {[%emt 0:41:19]} Bxe5 {[%emt 0:17:25]} 14. dxe5 {[%emt 0:01:23]} Qd4 {[%emt 0:00:44]} 15. Nxe4 {[%emt 0:02:44]} Bxe4 {[%emt 0:04:45]} 16. Qc3 {[%emt 0:01:13]} Qxc3 {[%emt 0:00:16]} 17. bxc3 {[%emt 0:00:01]} Nd7 {[%emt 0:05:22]} 18. Re1 {[%emt 0:01:14]} Bd5 {[%emt 0:01:07]} 19. Bxd5 {[%emt 0:04:42]} cxd5 {[%emt 0:00:02]} 20. Rb1 {[%emt 0:00:36]} Rfe8 {[%emt 0:03:17]} 21. f4 {[%emt 0:02:27]} Nc5 {[%emt 0:05:01]} 22. Be3 {[%emt 0:07:15]} Rac8 {[%emt 0:01:34]} 23. Bxc5 {[%emt 0:03:14]} Rxc5 {[%emt 0:00:04]} 24. Rxb7 {[%emt 0:00:03]} Rxc3 {[%emt 0:00:14]} 25. Kg2 {[%emt 0:00:32]} Rc2+ {[%emt 0:00:18]} 26. Kg3 {[%emt 0:00:01]} Rxa2 {[%emt 0:02:21]} 27. Rc1 {[%emt 0:02:30]} Ra3+ {[%emt 0:02:01]} 28. Kg2 {[%emt 0:02:45]} Ra2+ {[%emt 0:03:52]} 29. Kg3 {[%emt 0:00:14]} Ra3+ {[%emt 0:00:17]} 30. Kg2 {[%emt 0:00:02]} Ra2+ {[%emt 0:00:11]} 31. Kg3 1/2-1/2